fUSD/lending_fUSD_20240420
["ID","MTS","AMOUNT","RATE_DAILY","PERIOD"]
[323047418,1713617453150,-500.0,0.00015068,2]
[323047419,1713617453160,-500.0,0.00015068,2]
[323047420,1713617453171,-500.0,0.00015068,2]
[323047421,1713617453184,-1227.64,0.00015068,2]
[323047422,1713617453194,-1591.9,0.00015068,2]
[323047423,1713617453203,-500.0,0.00015068,2]
[323047424,1713617453213,-500.0,0.00015068,2]
[323047425,1713617453222,-500.0,0.00015068,2]
[323047426,1713617453232,-500.0,0.00015068,2]
[323047427,1713617453241,-728.83,0.00015068,2]
[323047428,1713617453252,-2521.93,0.00015068,2]
[323047429,1713617453261,-258.31309,0.00015068,2]
[323047430,1713617453271,-258.31309,0.00015068,2]
[323047431,1713617453280,-500.0,0.00015068,2]
[323047432,1713617453290,-258.31309,0.00015068,2]
[323047433,1713617453299,-500.0,0.00015068,2]
[323047434,1713617453309,-893.21,0.00015068,2]
[323047435,1713617453318,-500.0,0.00015068,2]
[323047436,1713617453329,-540.17,0.00015068,2]
[323047437,1713617453340,-258.31309,0.00015068,2]
[323047438,1713617453350,-495.61529261,0.00015068,2]
[323047439,1713617453361,-500.0,0.00015068,2]
[323047440,1713617453371,-258.31309,0.00015068,2]
[323047441,1713617453380,-500.0,0.00015068,2]
[323047442,1713617453390,-258.31309,0.00015068,2]
[323047443,1713617453400,-1768.34,0.00015068,2]
[323047444,1713617453410,-569.18,0.00015068,2]
[323047445,1713617453419,-1292.21,0.00015068,2]
[323047446,1713617453429,-520.64433811,0.00015068,2]
[323047447,1713617453438,-500.0,0.00015068,2]
[323047448,1713617453448,-1800.92,0.00015068,2]
[323047449,1713617453458,-151.0,0.00015068,2]
[323047450,1713617453469,-500.0,0.00015068,2]
[323047451,1713617453490,-1291.64,0.00015068,2]
[323047452,1713617453500,-1974.96,0.00015068,2]
[323047453,1713617453511,-500.0,0.00015068,2]
[323047454,1713617453521,-2882.99,0.00015068,2]
[323047455,1713617453531,-191.58898328,0.00015068,2]
[323047456,1713617453542,-500.0,0.00015068,2]
[323047457,1713617453552,-500.0,0.00015068,2]
[323047458,1713617453562,-2469.26,0.00015068,2]
[323047459,1713617453572,-502.04,0.00015068,2]
[323047460,1713617453582,-500.0,0.00015068,2]
[323047461,1713617453592,-156.19651,0.00015068,2]
[323047462,1713617453602,-742.33,0.00015068,2]
[323047463,1713617453611,-500.0,0.00015068,2]
[323047464,1713617453621,-500.0,0.00015068,2]
[323047465,1713617453631,-500.0,0.00015068,2]
[323047466,1713617453641,-871.14,0.00015068,2]
[323047467,1713617453651,-1252.27,0.00015068,2]
[323047468,1713617453661,-500.0,0.00015068,2]
[323047469,1713617453671,-1977.63,0.00015068,2]
[323047470,1713617453681,-500.0,0.00015068,2]
[323047471,1713617453691,-649.87,0.00015068,2]
[323047472,1713617453701,-500.0,0.00015068,2]
[323047473,1713617453710,-580.58,0.00015068,2]
[323047474,1713617453721,-500.0,0.00015068,2]
[323047475,1713617453732,-767.14,0.00015068,2]
[323047476,1713617453743,-500.0,0.00015068,2]
[323047477,1713617453753,-1682.64,0.00015068,2]
[323047478,1713617453763,-500.0,0.00015068,2]
[323047479,1713617453773,-500.0,0.00015068,2]
[323047480,1713617453783,-500.0,0.00015068,2]
[323047481,1713617453793,-500.0,0.00015068,2]
[323047482,1713617453803,-3896.93,0.00015068,2]
[323047483,1713617453813,-2709.19,0.00015068,2]
[323047484,1713617453823,-500.0,0.00015068,2]
[323047485,1713617453832,-512.76,0.00015068,2]
[323047486,1713617453842,-500.0,0.00015068,2]
[323047487,1713617453851,-1380.86,0.00015068,2]
[323047488,1713617453861,-901.1,0.00015068,2]
[323047489,1713617453870,-500.0,0.00015068,2]
[323047490,1713617453880,-523.47071016,0.00015068,2]
[323047491,1713617453889,-500.0,0.00015068,2]
[323047492,1713617453899,-526.32157449,0.00015068,2]
[323047493,1713617453909,-579.04,0.00015068,2]
[323047494,1713617453920,-500.0,0.00015068,2]
[323047495,1713617453929,-151.0,0.00015068,2]
[323047496,1713617453939,-500.0,0.00015068,2]
[323047497,1713617453948,-500.0,0.00015068,2]
[323047498,1713617453958,-151.0,0.00015068,2]
[323047499,1713617453967,-500.0,0.00015068,2]
[323047500,1713617453977,-151.0,0.00015068,2]
[323047501,1713617453987,-500.0,0.00015068,2]
[323047502,1713617453997,-3362.1,0.00015068,2]
[323047503,1713617454006,-2608.96,0.00015068,2]
[323047504,1713617454016,-500.0,0.00015068,2]
[323047505,1713617454026,-500.0,0.00015068,2]
[323047506,1713617454035,-500.0,0.00015068,2]
[323047507,1713617454045,-500.0,0.00015068,2]
[323047508,1713617454054,-500.0,0.00015068,2]
[323047509,1713617454064,-4501.99,0.00015068,2]
[323047510,1713617454074,-500.0,0.00015068,2]
[323047511,1713617454083,-151.0,0.00015068,2]
[323047512,1713617454093,-545.28,0.00015068,2]
[323047513,1713617454103,-151.0,0.00015068,2]
[323047514,1713617454113,-151.0,0.00015068,2]
[323047515,1713617454122,-500.0,0.00015068,2]
[323047516,1713617454132,-1720.81,0.00015068,2]
[323047517,1713617454142,-500.0,0.00015068,2]
[323047518,1713617454152,-500.0,0.00015068,2]
[323047519,1713617454161,-561.89,0.00015068,2]
[323047520,1713617454173,-1307.46,0.00015068,2]
[323047521,1713617454186,-500.0,0.00015068,2]
[323047522,1713617454196,-1187.13,0.00015068,2]
[323047523,1713617454207,-500.0,0.00015068,2]
[323047524,1713617454218,-500.0,0.00015068,2]
[323047525,1713617454227,-1449.62,0.00015068,2]
[323047526,1713617454237,-607.75,0.00015068,2]
[323047527,1713617454246,-829.22,0.00015068,2]
[323047528,1713617454257,-500.0,0.00015068,2]
[323047529,1713617454266,-500.0,0.00015068,2]
[323047530,1713617454276,-9283.72,0.00015068,2]
[323047531,1713617454285,-5979.68,0.00015068,2]
[323047532,1713617454295,-500.0,0.00015068,2]
[323047533,1713617454305,-500.0,0.00015068,2]
[323047534,1713617454314,-500.0,0.00015068,2]
[323047535,1713617454323,-339.76484344,0.00015068,2]
[323047536,1713617454333,-500.0,0.00015068,2]
[323047537,1713617454342,-1814.12,0.00015068,2]
[323047538,1713617454352,-660.57,0.00015068,2]
[323047539,1713617454362,-500.0,0.00015068,2]
[323047540,1713617454372,-500.0,0.00015068,2]
[323047541,1713617454382,-500.0,0.00015068,2]
[323047542,1713617454392,-500.0,0.00015068,2]
[323047543,1713617454401,-700.87,0.00015068,2]
[323047544,1713617454410,-26145.17,0.00015068,2]
[323047545,1713617454420,-3061.59,0.00015068,2]
[323047546,1713617454430,-500.0,0.00015068,2]
[323047547,1713617454439,-500.0,0.00015068,2]
[323047548,1713617454449,-500.0,0.00015068,2]
[323047549,1713617454459,-1088.52,0.00015068,2]
[323047550,1713617454468,-3454.69,0.00015068,2]
[323047551,1713617454478,-362.391714,0.00015068,2]
[323047552,1713617454487,-708.57,0.00015068,2]
[323047553,1713617454497,-164.304987,0.00015068,2]
[323047554,1713617454507,-164.304987,0.00015068,2]
[323047555,1713617454516,-164.304987,0.00015068,2]
[323047556,1713617454526,-500.0,0.00015068,2]
[323047557,1713617454536,-500.0,0.00015068,2]
[323047558,1713617454545,-500.0,0.00015068,2]
[323047559,1713617454556,-500.0,0.00015068,2]
[323047560,1713617454565,-22452.43,0.00015068,2]
[323047561,1713617454575,-300.0,0.00015073,2]
[323047562,1713617454584,-1490.08900761,0.00015073,2]
[323047563,1713617454685,-9.91099239,0.00015073,2]
[323047564,1713617454696,-150.0,0.00015077,2]
[323047565,1713617454706,-300.0,0.00015078,2]
[323047566,1713617454717,-150.0,0.00015078,2]
[323047567,1713617454727,-150.0,0.00015078,2]
[323047568,1713617454736,-150.0,0.00015079,2]
[323047569,1713617454745,-1500.0,0.00015079,2]
[323047570,1713617454755,-150.0,0.00015085,2]
[323047571,1713617454764,-546.4956699,0.00015085,2]
[323047572,1713617454851,-953.5043301,0.00015085,2]
[323047573,1713617454862,-21.4438699,0.00015086,2]
[323047574,1713617455608,-151.0,0.00015068,2]
[323047575,1713617455618,-151.0,0.00015068,2]
[323047576,1713617455627,-151.0,0.00015068,2]
[323047577,1713617455637,-128.5561301,0.00015086,2]
[323047578,1713617455646,-150.0,0.00015089,2]
[323047579,1713617455655,-150.0,0.0001509,2]
[323047580,1713617455665,-150.0,0.00015093,2]
[323047581,1713617455676,-150.77228815,0.00015094,2]
[323047582,1713617455685,-150.0,0.00015094,2]
[323047583,1713617455694,-1500.0,0.00015095,2]
[323047584,1713617455703,-1500.0,0.00015096,2]
[323047585,1713617455713,-150.0,0.00015097,2]
[323047586,1713617455722,-150.0,0.00015097,2]
[323047587,1713617455731,-150.0,0.00015097,2]
[323047588,1713617455741,-1500.0,0.00015097,2]
[323047589,1713617455751,-150.0,0.00015097,2]
[323047590,1713617455760,-1492.63674127,0.00015098,2]
[323047591,1713617455770,-300.0,0.00015099,2]
[323047592,1713617455780,-1396.20747837,0.00015101,2]
[323047593,1713617455793,-103.79252163,0.00015101,2]
[323047594,1713617455803,-300.0,0.00015103,2]
[323047595,1713617455813,-150.0,0.00015104,2]
[323047596,1713617455822,-1500.0,0.00015107,2]
[323047597,1713617455832,-150.0,0.0001511,2]
[323047598,1713617455842,-1500.0,0.0001511,2]
[323047599,1713617455852,-1500.0,0.00015118,2]
[323047600,1713617455862,-150.0,0.00015118,2]
[323047601,1713617455872,-1500.0,0.00015118,2]
[323047602,1713617455882,-150.0,0.00015119,2]
[323047603,1713617455892,-150.0,0.00015119,2]
[323047604,1713617455901,-150.0,0.0001512,2]
[323047605,1713617455912,-3000.0,0.0001512,2]
[323047606,1713617455924,-300.0,0.00015121,2]
[323047607,1713617455934,-150.0,0.00015122,2]
[323047608,1713617455944,-1500.0,0.00015122,2]
[323047609,1713617455955,-150.0,0.00015123,2]
[323047610,1713617455965,-150.0,0.00015125,2]
[323047611,1713617455974,-1500.0,0.00015127,2]
[323047612,1713617455984,-1500.0,0.00015127,2]
[323047613,1713617455994,-300.0,0.00015128,2]
[323047614,1713617456003,-1500.0,0.00015128,2]
[323047615,1713617456013,-301.78310384,0.00015128,2]
[323047616,1713617456023,-150.0,0.00015129,2]
[323047617,1713617456032,-150.0,0.00015129,2]
[323047618,1713617456042,-1500.0,0.0001513,2]
[323047619,1713617456052,-475.53717214,0.0001513,2]
[323047620,1713617456061,-1500.0,0.00015133,2]
[323047621,1713617456070,-150.0,0.00015136,2]
[323047622,1713617456080,-150.0,0.00015136,2]
[323047623,1713617456089,-150.0,0.00015137,2]
[323047624,1713617456100,-3146.18847097,0.0001514,2]
[323047625,1713617458490,-2836.26442885,0.00014116,2]
[323047626,1713617458499,-151.0,0.00015,2]
[323047627,1713617458508,-192.39388199,0.00015043,2]
[323047628,1713617458518,-52.91264731,0.00015059,2]
[323047629,1713617491077,1000.0,0.00014018,2]
[323047630,1713617498873,72716.04325081,0.00014018,2]
[323047636,1713617730830,-150.0,0.00014017,2]
[323047637,1713617730853,-26042.57674919,0.00014018,2]
[323047638,1713617730875,-10170.42325081,0.00014018,2]
[323047641,1713617760286,-2797.05756089,0.00014017,2]
[323047642,1713617760310,-6517.99032308,0.00014018,2]
[323047643,1713617760334,-3054.97263541,0.00014018,2]
[323047644,1713617760358,-864.45,0.00014074,2]
[323047645,1713617760383,-650.76,0.00014197,2]
[323047646,1713617760407,-150.0,0.0001488,2]
[323047647,1713617760433,-258.57500002,0.00014899,2]
[323047648,1713617760455,-3902.1944806,0.000149,2]
[323047649,1713617786341,-6111.60138158,0.00014018,2]
[323047650,1713617786366,-1036.1101169,0.00014018,2]
[323047651,1713617786389,-163.88,0.00014066,2]
[323047652,1713617786411,-3597.8055194,0.000149,2]
[323047653,1713617786434,-155.0,0.00014966,2]
[323047654,1713617786456,-155.08492716,0.00014966,2]
[323047655,1713617791527,4615.90242367,0.00014554,2]
[323047656,1713617801436,990.0411,0.00014868,2]
[323047657,1713617802252,50.57453129,0.000149,2]
[323047659,1713617892176,242.73,0.00012113,2]
[323047663,1713618418514,243.43,0.00011851,2]
[323047676,1713618631875,-204.1589,0.00012899,2]
[323047677,1713618631886,-852.6241963,0.00012999,2]
[323047678,1713618631898,-975.9428,0.00012999,2]
[323047694,1713618632502,-165.58687479,0.00012999,2]
[323047695,1713618632512,-796.52851521,0.00013,2]
[323047696,1713618633030,-245.58341223,0.00013,2]
[323047697,1713618633040,-520.61,0.00013621,2]
[323047698,1713618633050,-417.67562431,0.00013636,2]
[323047699,1713618633090,-893.97357438,0.00013636,2]
[323047700,1713618633105,-500.71354731,0.00013636,2]
[323047701,1713618633146,-5767.16304284,0.00013636,2]
[323047702,1713618633158,-583.74421116,0.00013636,2]
[323047703,1713618633168,-500.0,0.00013699,2]
[323047704,1713618633179,-250.0,0.00013728,2]
[323047705,1713618633189,-158.75,0.00013866,2]
[323047706,1713618633199,-194.99,0.00013872,2]
[323047707,1713618633210,-500.0,0.00013932,2]
[323047708,1713618633221,-157.35965338,0.00013959,2]
[323047709,1713618633231,-150.99,0.00013959,2]
[323047710,1713618633241,-1821.83,0.00013959,2]
[323047711,1713618633251,-479.39,0.00013988,2]
[323047712,1713618633261,-1394.84613546,0.00014,2]
[323047713,1713618633274,-855.15386454,0.00014,2]
[323047714,1713618633285,-499.99,0.00014009,2]
[323047715,1713618633295,-150.0,0.00014025,2]
[323047716,1713618633305,-3850.86653534,0.00014026,2]
[323047729,1713618637999,-855.86857211,0.00014026,2]
[323047730,1713618638299,-25293.25489255,0.00014026,2]
[323047731,1713618638311,-219.28,0.00014059,2]
[323047732,1713618638323,-243.43,0.00014114,2]
[323047733,1713618638342,-771.0,0.0001463,2]
[323047734,1713618638353,-18011.3888777,0.000147,2]
[323047735,1713618638364,-778.381951,0.00014795,2]
[323047736,1713618638376,-4233.4806,0.00014868,2]
[323047737,1713618638388,-15703.883,0.00014868,2]
[323047738,1713618638399,-3035.52538802,0.00014868,2]
[323047739,1713618638410,-113.90516188,0.000149,2]
[323047740,1713618638421,-157.35965338,0.000149,2]
[323047741,1713618638432,-7500.0,0.000149,2]
[323047742,1713618638444,-2458.15464048,0.000149,2]
[323047743,1713618638455,-296.20021659,0.000149,2]
[323047744,1713618638466,-257.26944637,0.00014901,2]
[323047745,1713618638478,-3429.97226145,0.00014965,2]
[323047746,1713618638490,-2766.42959373,0.00014966,2]
[323047747,1713618638501,-347.34840719,0.00014966,2]
[323047748,1713618638513,-2998.8492905,0.00014967,2]
[323047749,1713618638523,-3079.50911342,0.00014967,2]
[323047750,1713618638537,-154.08942296,0.00014967,2]
[323047751,1713618638548,-160.7755528,0.00014967,2]
[323047752,1713618638559,-161.31221782,0.00014967,2]
[323047753,1713618638571,-449.92841982,0.00014967,2]
[323047754,1713618638582,-245000.0,0.00014968,2]
[323047755,1713618638594,-18607.42550284,0.00014968,2]
[323047756,1713618638607,-174.24710374,0.00014968,2]
[323047757,1713618638618,-12260.56754514,0.0001498,2]
[323047758,1713618638629,-37676.0,0.00014981,2]
[323047759,1713618638641,-5727.0,0.00014981,2]
[323047760,1713618638653,-5891.0,0.00014981,2]
[323047761,1713618638664,-2704.0,0.00014981,2]
[323047762,1713618638675,-1064.656,0.00014981,2]
[323047763,1713618638686,-11689.73694881,0.0001499,2]
[323047764,1713618638702,-3000.0,0.0001499,2]
[323047765,1713618638713,-152.88,0.0001499,2]
[323047766,1713618638724,-152.88,0.0001499,2]
[323047767,1713618638735,-152.88,0.0001499,2]
[323047768,1713618638746,-156.95867509,0.00014999,2]
[323047769,1713618638758,-199.47074766,0.00014999,2]
[323047770,1713618638769,-5000.0,0.00015,2]
[323047771,1713618638780,-825.4238,0.00015,3]
[323047772,1713618638792,-200000.0,0.00015,5]
[323047773,1713618638803,-1474.54177032,0.00015,2]
[323047774,1713618638814,-63917.88797172,0.00015,2]
[323047775,1713618638826,-155.0,0.00015,2]
[323047776,1713618638837,-323.76518794,0.00015,2]
[323047777,1713618638848,-3500.0,0.00015,2]
[323047778,1713618638859,-205.77957528,0.00015,2]
[323047779,1713618638870,-617.34653271,0.00015,2]
[323047780,1713618638881,-257.9599885,0.00015,2]
[323047781,1713618638892,-8581.35652071,0.00015,2]
[323047782,1713618638903,-30000.0,0.00015,2]
[323047783,1713618638913,-1000.0,0.00015,2]
[323047784,1713618638924,-10376.37479995,0.00015,2]
[323047785,1713618638937,-404500.38862275,0.00015,2]
[323047786,1713618638948,-191.20345887,0.00015,2]
[323047787,1713618638959,-10000.0,0.00015001,2]
[323047788,1713618638970,-3035.525388,0.00015039,2]
[323047789,1713618638981,-800.0,0.00015041,2]
[323047790,1713618638992,-2458.15464039,0.00015043,2]
[323047791,1713618639002,-150.0,0.00015051,2]
[323047792,1713618639013,-150.0,0.00015054,2]
[323047793,1713618639024,-152.88,0.00015057,2]
[323047794,1713618639035,-152.88,0.00015057,2]
[323047795,1713618639046,-152.88,0.00015057,2]
[323047796,1713618639057,-152.88,0.00015057,2]
[323047797,1713618639068,-152.88,0.00015057,2]
[323047798,1713618639079,-152.88,0.00015057,2]
[323047799,1713618639090,-152.88,0.00015058,2]
[323047800,1713618639101,-150.0,0.00015063,2]
[323047801,1713618639112,-1500.0,0.00015065,2]
[323047802,1713618639123,-666.5401493,0.00015066,2]
[323047803,1713618639134,-6302.37073122,0.00015067,2]
[323047804,1713618639145,-155.0,0.00015067,2]
[323047805,1713618639157,-246.4440925,0.00015067,2]
[323047806,1713618639168,-121331.01250851,0.00015067,2]
[323047808,1713618640214,-1487.31897559,0.00015059,2]
[323047809,1713618640244,-12.68102441,0.00015059,2]
[323047810,1713618640255,-606.31897559,0.0001506,2]
[323047811,1713618640294,-893.68102441,0.0001506,2]
[323047812,1713618640305,-1500.0,0.00015061,2]
[323047813,1713618640315,-1500.0,0.00015062,2]
[323047814,1713618640326,-757.67285876,0.00015063,2]
[323047815,1713618640354,-742.32714124,0.00015063,2]
[323047816,1713618640365,-1500.0,0.00015065,2]
[323047817,1713618640376,-1500.0,0.00015066,2]
[323047818,1713618640386,-386.31272759,0.00015067,2]
[323047819,1713618640399,-3933.36463944,0.00015067,2]
[323047820,1713618640414,-1078.50391284,0.00015067,2]
[323047821,1713618640444,-500.27100011,0.00015067,2]
[323047822,1713618640457,-857.69234347,0.00015067,2]
[323047823,1713618640470,-7034.21732542,0.00015067,2]
[323047824,1713618640515,-2819.22331219,0.00015067,2]
[323047834,1713618643170,-209.60366205,0.00014967,2]
[323047835,1713618643180,-225.75953795,0.00015067,2]
[323047836,1713618643192,-630.47,0.00015067,2]
[323047837,1713618645993,-1854.9635193,0.00015067,2]
[323047838,1713618646005,-596.52668051,0.00015067,2]
[323047839,1713618646209,-644.58765686,0.00015067,2]
[323047842,1713618970015,260.07,0.00012062,2]
[323047848,1713619390086,21363.3912951,0.00028,120]
[323047849,1713619420514,1994.15387109,0.00013568,2]
[323047850,1713619426068,5.84612891,0.00013568,2]
[323047851,1713619426090,206.24847348,0.00013568,2]
[323047852,1713619428802,728.56,0.00013163,2]
[323047853,1713619454490,215.97185955,0.00013568,2]
[323047854,1713619456200,532.96493615,0.00013568,2]
[323047855,1713619458968,247.06,0.0001129,2]
[323047856,1713619459185,69.19473082,0.00013554,2]
[323047857,1713619459204,177.86526918,0.00013554,2]
[323047858,1713619489318,1822.13473082,0.00013208,2]
[323047879,1713619620465,156.48385263,0.00022,30]
[323047915,1713619831981,-781.07343554,0.00013167,2]
[323047916,1713619831991,-513.56,0.00013168,2]
[323047917,1713619832002,-3022.16,0.00013185,2]
[323047918,1713619832011,-250.0,0.00013193,2]
[323047919,1713619832022,-779.76526918,0.00013208,2]
[323047920,1713619832033,-150.0,0.00013215,2]
[323047921,1713619832042,-159.53,0.00013545,2]
[323047922,1713619832054,-532.41854834,0.00013574,2]
[323047923,1713619832064,-159.53,0.00013582,2]
[323047924,1713619832074,-159.53,0.00013619,2]
[323047925,1713619832083,-159.53,0.00013656,2]
[323047926,1713619832093,-159.53,0.00013693,2]
[323047927,1713619832103,-150.0,0.00013698,2]
[323047928,1713619832112,-150.0,0.00013698,2]
[323047929,1713619832123,-499.99,0.00013699,2]
[323047930,1713619832133,-499.99,0.00013699,2]
[323047931,1713619832143,-367.61,0.00013699,2]
[323047932,1713619832153,-183.06,0.00013699,2]
[323047933,1713619832163,-200.0,0.00013699,2]
[323047934,1713619832173,-159.53,0.0001373,2]
[323047935,1713619832183,-159.53,0.00013768,2]
[323047936,1713619832192,-159.53,0.00013805,2]
[323047937,1713619832203,-583.51,0.00013806,2]
[323047938,1713619832213,-37.80197974,0.00013842,2]
[323047939,1713619832334,-121.72802026,0.00013842,2]
[323047940,1713619832344,-159.53,0.00013879,2]
[323047941,1713619832355,-159.53,0.00013916,2]
[323047942,1713619832366,-159.53,0.00013953,2]
[323047943,1713619832380,-159.53,0.00013991,2]
[323047944,1713619832390,-178.27,0.0001401,2]
[323047945,1713619832400,-396.12682261,0.0001401,2]
[323047946,1713619832413,-267.55317739,0.0001401,2]
[323047947,1713619832423,-159.53,0.00014028,2]
[323047948,1713619832433,-173.14,0.00014031,2]
[323047949,1713619832443,-159.53,0.00014065,2]
[323047950,1713619832453,-159.53,0.00014102,2]
[323047951,1713619832464,-159.53,0.00014139,2]
[323047952,1713619832474,-285.0,0.0001416,2]
[323047953,1713619832485,-159.53,0.00014176,2]
[323047954,1713619832495,-159.53,0.00014213,2]
[323047955,1713619832506,-159.53,0.00014251,2]
[323047956,1713619832516,-150.0,0.00014545,2]
[323047957,1713619832526,-418.94,0.00014578,2]
[323047958,1713619832536,-532.0,0.0001463,2]
[323047959,1713619832546,-740.0,0.00014658,2]
[323047960,1713619832557,-2500.0,0.00014768,2]
[323047961,1713619832567,-285.0,0.0001485,2]
[323047962,1713619832578,-475.59830547,0.00014866,2]
[323047963,1713619832589,-263.90768925,0.00014866,2]
[323047964,1713619832599,-430.92400074,0.00014866,2]
[323047965,1713619832609,-215.29464933,0.00014866,2]
[323047966,1713619832621,-1283.42081222,0.00014866,2]
[323047967,1713619832631,-1241.11650794,0.00014867,2]
[323047968,1713619832641,-419.1773,0.00014868,2]
[323047969,1713619832652,-46880.76060817,0.00014868,2]
[323047970,1713619832666,-495.48279711,0.00014868,2]
[323047971,1713619832693,-6626.41834742,0.00014868,2]
[323047972,1713619832713,-514.33101265,0.00014868,2]
[323047973,1713619832726,-1248.64515165,0.00014868,2]
[323047974,1713619832742,-508.62999564,0.00014868,2]
[323047975,1713619832778,-530.38881895,0.00014868,2]
[323047976,1713619832791,-6665.89650835,0.00014868,2]
[323047977,1713619832803,-629.26449483,0.00014868,2]
[323047978,1713619832827,-1033.7,0.00014868,2]
[323047979,1713619832853,-612.37512076,0.00014868,2]
[323048009,1713619838187,-655.82000289,0.00014078,2]
[323048010,1713619838240,-344.17999711,0.00014078,2]
[323048011,1713619838250,-446.60039157,0.00014868,2]
[323048012,1713619838261,-1729.55783652,0.00014868,2]
[323048013,1713619838368,-785.92464769,0.00014868,2]
[323048014,1713619838380,-669.42707453,0.00014868,2]
[323048015,1713619838391,-8997.85481129,0.00014868,2]
[323048016,1713619838403,-3219.72035,0.00014868,2]
[323048017,1713619838414,-444.11719502,0.00014868,2]
[323048018,1713619838440,-21490.01083576,0.00014868,2]
[323048019,1713619838451,-1320.68414203,0.00014868,2]
[323048020,1713619838478,-140150.20986006,0.00014868,2]
[323048021,1713619838488,-3000.0,0.0001492,2]
[323048022,1713619838497,-193.52558659,0.00014967,2]
[323048023,1713619838506,-4862.67552214,0.00014967,2]
[323048024,1713619838540,-1784.28092983,0.00014967,2]
[323048025,1713619838551,-10409.85025893,0.00014967,2]
[323048026,1713619838561,-154.08942295,0.00014967,2]
[323048027,1713619838570,-205.81555712,0.00014967,2]
[323048028,1713619838579,-2235.8747972,0.00014967,2]
[323048029,1713619838590,-79.56450697,0.00014967,2]
[323048030,1713619838600,-7168.31675169,0.00014967,2]
[323048031,1713619838611,-331.68324831,0.00014967,2]
[323048032,1713619838620,-2068.11776112,0.00014968,2]
[323048033,1713619838633,-1366.12143267,0.00014968,2]
[323048034,1713619840261,-306.655,0.00014968,2]
[323048035,1713619840443,-402.86660621,0.00014968,2]
[323048036,1713619840453,-299.95227988,0.00014968,2]
[323048037,1713619840462,-2379.13207651,0.00014968,2]
[323048048,1713619846187,-532.0,0.00014658,2]
[323048049,1713619846196,-1569.83817973,0.00014968,2]
[323048050,1713619846206,-177.41903539,0.00014968,2]
[323048051,1713619846215,-263.13145596,0.00014968,2]
[323048052,1713619846225,-174.76296694,0.00014988,2]
[323048053,1713619846234,-11396.64064,0.00015,2]
[323048054,1713619846244,-447.74017959,0.00015,2]
[323048055,1713619846350,-2875.25982041,0.00015,2]
[323048056,1713619846360,-1474.54177032,0.00015,2]
[323048057,1713619846371,-8581.35652071,0.00015,2]
[323048058,1713619846380,-845.0,0.00015,2]
[323048059,1713619846390,-191.20345887,0.00015,2]
[323048060,1713619846399,-13056.80942437,0.00015,2]
[323048061,1713619846410,-1313.87865291,0.00015,2]
[323048062,1713619846454,-655.19974353,0.00015,2]
[323048063,1713619846601,-1298.95741712,0.00015,2]
[323048070,1713619949813,259.23,0.0001214,2]
[323048073,1713619981509,3500.0,0.0001288,2]
[323048078,1713620032774,5307.0,0.0001288,2]
[323048099,1713620435539,246.26,0.00011482,2]
[323048121,1713621005231,233.94,0.000112,2]
[323048133,1713621032207,-162.28872401,0.00013123,2]
[323048134,1713621032216,-781.07343554,0.00013221,2]
[323048135,1713621032225,-155.0,0.00013222,2]
[323048136,1713621032235,-636.34963029,0.00013223,2]
[323048137,1713621032244,-3038.94,0.0001323,2]
[323048138,1713621032254,-150.0,0.00013232,2]
[323048139,1713621032263,-800.0,0.00013242,2]
[323048140,1713621032273,-2116.22754264,0.00013252,2]
[323048141,1713621032312,-408.75323981,0.00013252,2]
[323048142,1713621032324,-450.0,0.00013252,2]